{"text_format":"1","workbook":"xlsx","n_sheets":1,"sheets":["ASGARİ KV GECİÇİ"],"not_rendered":{"charts":0,"images":0,"macros":1,"external_links":0,"defined_names":2,"comments":0,"pivot_tables":0},"unopened":[],"bounds":{"document_bytes":16777216,"sheet_cells":100000,"rows_first":2000,"rows_last":500,"rows_between":2000,"halvings":0,"cell_chars":16384,"cell_head_chars":4096},"cells_cut":0,"cells_raw":0,"read":"whole","date_system":"1900"}

{"sheet":"ASGARİ KV GECİÇİ","index":0,"n_rows":165,"n_cols":11,"rows_kept":165,"cut":false,"hidden":false,"merged":[[163,1,163,5],[163,6,163,7],[68,8,78,8],[156,6,156,7],[157,6,157,7],[158,6,158,7],[159,6,159,7],[160,6,160,7],[156,3,156,5],[158,3,158,5],[159,3,159,5],[80,1,123,1],[76,2,77,2],[79,1,79,2],[160,3,160,5],[126,8,131,8],[132,8,137,8],[138,8,143,8],[155,1,160,2],[157,3,157,5],[149,1,150,2],[155,3,155,7],[152,8,153,10],[126,1,143,2],[144,1,144,3],[145,1,145,3],[1,1,1,7],[3,1,11,2],[67,1,78,1],[64,1,64,2],[65,1,66,2],[11,3,11,4],[64,3,64,4],[65,3,65,4],[66,3,66,4],[67,3,67,4],[68,2,69,2],[70,2,71,2],[72,2,73,2],[74,2,75,2],[2,6,2,7],[2,4,2,5],[105,10,117,17],[164,6,164,7],[39,9,51,16],[162,6,162,7],[162,1,162,5],[164,1,164,5],[124,1,124,3],[12,1,63,1],[12,3,12,4],[125,10,143,10],[155,8,160,8],[147,1,147,3],[152,1,153,5],[152,6,153,7]]}
[]
[null,"SADECE SARI RENKLİ HÜCRELERE VERİ GİRİŞİ YAPILACAKTIR. "]
[null,null,null,null,"NORMAL KURUMLAR VERGİSİ ",null,"ASGARİ KURUMLAR VERGİSİ"]
[null,"KAZANÇ VE İLAVELER",null,"TİCARİ BİLANÇO KARI","Dikkate Alınır",null,"Dikkate Alınır",{"$f":"F4","v":0}]
[null,null,null,"Üretim Faaliyetinden Elde Edilen Kazanç","Dikkate Alınır",null,"Dikkate Alınır",0]
[null,null,null,"İhracat Faaliyetinden Elde Edilen Kazanç","Dikkate Alınır",null,"Dikkate Alınır",0]
[null,null,null,"TİCARİ BİLANÇO ZARARI (-)","Dikkate Alınır",null,"Dikkate Alınır",0,"CARİ YILA AİT ZARAR VE İNDİRİMLER TUTARININ HESABINDA DİKKATE ALINMAKTADIR. 70. SATIR. TUTAR POZİTİF OLARAK GİRİLMELİDİR."]
[null,null,null,"6491 sayılı Türk Petrol Kanunu'nun Md. 12/5 kapsamında itfa payı olarak addolunan gelirler (-)","Dikkate Alınır",null,"Dikkate Alınır",0]
[null,null,null,"İLAVELER","Dikkate Alınır",{"$f":"SUM(F10:F11)","v":0},"Dikkate Alınır",0]
[null,null,null,"Kanunen Kabul Edilmeyen Giderler (+)","Dikkate Alınır",null,"Dikkate Alınır",0]
[null,null,null,"Önceki Yıl Ayrılan Finansman Fonu","Dikkate Alınır",null,"Dikkate Alınır",0]
[null,null,null,"KAR VE İLAVELER TOPLAMI",null,{"$f":"F4-F8+F9","v":0},null,{"$f":"F12","v":0}]
[null,"ZARAR OLSA DAHİ İNDİRİLECEK İSTİSNA VE İNDİRİMLER (-)","KODU","ZARAR OLSA DAHİ İNDİRİLECEK İSTİSNA VE İNDİRİMLER TOPLAMI",null,{"$f":"SUM(F14:F64)","v":0},null,{"$f":"SUM(H14:H64)","v":0}]
[null,null,297,"İştirak Kazançları İstisnası ( K.V.K. Mad. 5/1-a-1-2 )  ( Tam mükellef kurumlardan )","Dikkate Alınır",null,"Dikkate Alınır",{"$f":"F14","v":0}]
[null,null,298,"İştirak Kazançları (K.V.K. Mad. 5/1-a-3) (GSYF lerin katılma paylarının fona iadesinden doğan gelirler, GSYO'ların hisse senetlerinden elde ettikleri kar payları ve katılma paylarının fona iadesinden doğan gelirler ile bu fonların katılma paylarının değerlenmesinden kaynaklanan değer artış kazançları)","Dikkate Alınır",null,"Dikkate Alınır",{"$f":"F15","v":0}]
[null,null,299,"İştirak Kazançları (K.V.K. Mad. 5/1-a-4) (Diğer fonlardan)","Dikkate Alınır",null,"Dikkate Alınır",0]
[null,null,386,"İştirak Kazançları (K.V.K. Mad. 5/1-a-5) (Diğer yatırım fonlarına katılma paylarının değerlenmesinden kaynaklanan değer artış kazançları)","Dikkate Alınır",null,"Dikkate Alınır",0]
[null,null,306,"İştirak Kazançları İstisnası ( K.V.K. Mad. 5/1-a ) / ( K.V.K. Mad. 12’den Kaynaklanan )","Dikkate Alınır",null,"Dikkate Alınır",0]
[null,null,307,"İştirak Kazançları İstisnası ( K.V.K. Mad. 5/1-a ) / ( K.V.K. Mad. 13’den Kaynaklanan )","Dikkate Alınır",null,"Dikkate Alınır",0]
[null,null,317,"Yurtdışı İştirak Kazançları ( K.V.K. Mad. 5/1-b )  (VERGİ YÜKÜ % 10 ALTINDA)","Dikkate Alınır",null,"Dikkate Alınmaz",{"$f":"F20*0","v":0}]
[null,null,388,"Yurtdışı İştirak Kazançları ( K.V.K. Mad. 5/1-b ) ( Ödenmiş Sermayesinin en az % 50 sine sahip olunmnas suretiyle iştirak edilen yurt dışı kurumlardan elde edilenve % 50 sin istisna kaapsamında olanan kazançlar ) (VERGİ YÜKÜ %10 UN ÜZERİNDE)","Dikkate Alınır",null,"Dikkate Alınır",0]
[null,null,318,"Tam Mükellef Anonim Şirketlerin Yurtdışı İştirak Hisseleri Satış Kazançları ( K.V.K. Mad. 5/1-c)","Dikkate Alınır",null,"Dikkate Alınmaz",{"$f":"F22*0","v":0}]
[null,null,319,"Emisyon Primi Kazancı ( K.V.K. Mad. 5/1- ç )","Dikkate Alınır",null,"Dikkate Alınır",{"$f":"F23","v":0}]
[null,null,389,"Yatırım Fon ve Ortaklığı Portföy İşletmeciliği Kazancı (Taşınmazlardan elde edilen kazançlar hariç) ( K.V.K. Mad. 5/1-d ) (Taşınmaz dışı)","Dikkate Alınır",null,"Dikkate Alınır",0]
[null,null,390,"Y. Fon ve Ort. Portföy İşl.Kazancı (taşınmazlardan elde edilen kazançlar) (K.V.K. Mad. 5/1-d)","Dikkate Alınır",null,"Dikkate Alınmaz",{"$f":"F25*0","v":0}]
[null,null,351,"Taşınmaz Satış Kazancı İstisnası ( K.V.K. Mad. 5/1-e )","Dikkate Alınır",null,"Dikkate Alınmaz",0]
[null,null,352,"İştirak Hissesi Satış Kazancı İstisnası ( K.V.K. Mad. 5/1-e )","Dikkate Alınır",null,"Dikkate Alınmaz",0]
[null,null,353,"Kurucu Senetleri, İntifa Senetleri ve Rüçhan Hakları Satış Kazancı İstisnası ( K.V.K. Mad. 5/1-e )","Dikkate Alınır",null,"Dikkate Alınmaz",0]
[null,null,321,"Bank. Fin. Kir yada Fin. Şir veya TMSF’ye Borçlu Durumda Olan Kurumların Taş. İşt. His ile Kur. Sen. Ve R.Hakları Sat. Kaz. ( K.V.K. Mad. 5/1-f )","Dikkate Alınır",null,"Dikkate Alınmaz",0]
[null,null,322,"Yurtdışı Şube Kazançları ( K.V.K. Mad. 5/1-g )","Dikkate Alınır",null,"Dikkate Alınmaz",0]
[null,null,304,"Yurt Dışı İnşaat Onarma, Montaj ve Teknik Hizmetlerden Sağlanan Kazançlar ( K.V.K. Mad. 5/1-h )  (% 10 VERGİ YÜKÜNE İSABET EDEN KAZANÇ)","Dikkate Alınır",null,"Dikkate Alınır",{"$f":"F31","v":0}]
[null,null,304,"Yurt Dışı İnşaat Onarma, Montaj ve Teknik Hizmetlerden Sağlanan Kazançlar ( K.V.K. Mad. 5/1-h ) (%10 VERGİ YÜKÜNÜ AŞAN KAZANÇ)","Dikkate Alınır",null,"Dikkate Alınmaz"]
[null,null,305,"Eğ. Öğ. Kur. İle Öz. Kreş ve Gün.  Bakım İle Rehabilitasyon Mrkz. Kazançlar ( K.V.K. Mad. 5/1-ı )","Dikkate Alınır",null,"Dikkate Alınmaz",0]
[null,null,360,"Sat-Kirala-Geri Al İşlemlerden Doğan Kazançlarda İstisna ( K.V.K. Mad. 5/1-j ) (Taşınırlar )","Dikkate Alınır",null,"Dikkate Alınır",{"$f":"F34","v":0}]
[null,null,355,"Sat-Kirala-Geri Al İşlemlerden Doğan Kazançlarda İstisna ( K.V.K. Mad. 5/1-j ) (Taşınmazlar )","Dikkate Alınır",null,"Dikkate Alınır",0]
[null,null,356,"Sat-Kirala-Geri Al İşlemlerden Doğan Kazançlarda İstisna ( K.V.K. Mad. 5/1-j ) (Diğer )","Dikkate Alınır",null,"Dikkate Alınır",0]
[null,null,357,"Kira Sertifikası İhracı Amacıyla Varlık ve Hakların Satışından Doğan Kazançlarda İstisna ( K.V.K. Mad. 5/1-k ) ( Taşınırlar )","Dikkate Alınır",null,"Dikkate Alınır",0]
[null,null,358,"Kira Sertifikası İhracı Amacıyla Varlık ve Hakların Satışından Doğan Kazançlarda İstisna ( K.V.K. Mad. 5/1-k ) ( Taşınmazlar ) ","Dikkate Alınır",null,"Dikkate Alınır",0]
[null,null,359,"Kira Sertifikası İhracı Amacıyla Varlık ve Hakların Satışından Doğan Kazançlarda İstisna ( K.V.K. Mad. 5/1-k ) ( Diğer )","Dikkate Alınır",null,"Dikkate Alınır",0]
[null,null,308,"Serbest Bölgelerde Elde Edilen Kazançlar","Dikkate Alınır",null,"Dikkate Alınır",0,null,"Kurumlar Vergisi beyannamesinin \"Diğer İndirimler\" veya \"Diğer indirimler ve istisnalar\" satırında gösterilmekle birlikte, mahiyet itibariyle indirim veya istisna kapsamında olmayıp, daha çok vergi matrahının doğru hesaplanması amacıyla beyannamenin bu satırına yazılan ( TMS/TFRS ve VUK Değerleme Farkları, örtülü sermaye olarak kabule edilen borçlanmalarda borç alan kurum nezdinde Türk Lirasının değer kazanması sonucu oluşan kur farkı gelirleri, kıdem tazminatı karşılığı iptali, vergi borçlarına mahsup edilen ve gelir olarak dikkate alınan 193 sayılı Kanunun mükerrer 121 maddesi kapsamındaki indirim hakkı gibi) tutarlar üzerinden  asgari kurumlar vergisi hesaplanmayacaktır.\n\nYürürlükte bulunan çifte vergilendirmeyi önleme anlaşmaları kapsamında, vergilendirme hakkının ilgili ülkede bulunması nedeniyle Türkiye’nin vergi alma hakkı olmadığı veya söz konusu kazançların Türkiye’de istisna edilmesi gerektiği durumlarda, elde edilen ve kurum kazancına dâhil edilerek beyannamenin “Diğer indirimler” ile “Diğer indirimler ve istisnalar” satırlarında matrahtan indirim konusu yapılan tutarlar asgari kurumlar vergisinin kapsamına girmeyecektir. Ayrıca, yürürlükte bulunan ikili veya çok taraflı diğer uluslararası anlaşmalar uyarınca, kurumlar vergisinden istisna edilen kazançlar da kapsamda değildir."]
[null,null,310,"Teknoloji Geliştirme Bölgelerinde Elde Edilen Kazançlar","Dikkate Alınır",null,"Dikkate Alınır",0]
[null,null,311,"Teknoloji Geliştirme Bölgelerinde Elde Edilen Kazançlar (Yönetici Şirketler)","Dikkate Alınır",null,"Dikkate Alınır",0]
[null,null,315,"Türk Uluslararası Gemi Siciline Kayıtlı Gemilerin İşletilmesinden ve Devrinden Sağlanan Kazançlar","Dikkate Alınır",null,"Dikkate Alınır",0]
[null,null,323,"Yabancı Fon Kazançlarının Vergilendirilmesinde Yönetici Şirketlere İlişkin İstisna ( K.V.K. Mad. 5/A/3 )","Dikkate Alınır",null,"Dikkate Alınmaz",{"$f":"F44*0","v":0}]
[null,null,354,"Sınai Mülkiyet Haklarında İstisna ( K.V.K. Mad. 5/B )","Dikkate Alınır",null,"Dikkate Alınmaz",0]
[null,null,387,"5300 Sayılı Tarım Ürünleri Lisanslı Depoculuk Kanunu Kapsamında Düzenlenen Ürün Senetlerinin Elden Çıkarılmasından Doğan Kazanç İstisnası (193 s. Kanun Geçici Madde 76)","Dikkate Alınır",null,"Dikkate Alınmaz",0]
[null,null,350,"Diğer İndirimler ve İstisna","Dikkate Alınır",null,"Dikkate Alınmaz",0]
[null,null,350,"Diğer İndirimler ve İstisna","Dikkate Alınır",null,"Dikkate Alınır",{"$f":"F48","v":0}]
[null,null,370,"1-KVK Geç. Md. 14/1-a kapsamında değerlemeden doğan kazanç istisnası","Dikkate Alınır",null,"Dikkate Alınmaz",0]
[null,null,371,"2-KVK Geç. Md. 14/1-b kapsamında kur farkı kazanç istisnası","Dikkate Alınır",null,"Dikkate Alınmaz",0]
[null,null,372,"3-KVK Geç. Md. 14/1-b kapsamında dönem sonu değerlemesinden doğan kar payı ve faiz istisnası","Dikkate Alınır",null,"Dikkate Alınmaz",0]
[null,null,373,"4-KVK Geç. Md. 14/1-b kapsamında vade sonunda oluşan kar payı ve faiz istisnası","Dikkate Alınır",null,"Dikkate Alınmaz",0]
[null,null,374,"5-KVK Geç. Md. 14/1-b kapsamında vade sonunda doğan diğer kazançlarda istisna","Dikkate Alınır",null,"Dikkate Alınmaz",0]
[null,null,375,"6-KVK Geç. Md. 14/2 kapsamında kur farkı kazanç istisnası","Dikkate Alınır",null,"Dikkate Alınmaz",0]
[null,null,376,"7-KVK Geç. Md. 14/2 kapsamında dönemi sonu değerlemesinen doğan kar payı ve faiz istisnası","Dikkate Alınır",null,"Dikkate Alınmaz",0]
[null,null,377,"8-KVK Geç. Md. 14/2 kapsamında vade sonunda oluşan kar payı ve faiz istisnası","Dikkate Alınır",null,"Dikkate Alınmaz",0]
[null,null,378,"9-KVK Geç. Md. 14/2 kapsamında vade sonunda doğan diğer kazançlarda istisna","Dikkate Alınır",null,"Dikkate Alınmaz",0]
[null,null,379,"10-KVK Geç. Md. 14/3 kapsamında altın hesaplarının dönüştürülmesinden doğan kazanç istisnası","Dikkate Alınır",null,"Dikkate Alınmaz",0]
[null,null,380,"11-KVK Geç. Md. 14/3 kapsamında dönem sonu değerlemesinden doğan kar payı ve faiz istisnası","Dikkate Alınır",null,"Dikkate Alınmaz",0]
[null,null,381,"12-KVK Geç. Md. 14/3 kapsamında vade sonunda oluşan kar payı ve faiz istisnası","Dikkate Alınır",null,"Dikkate Alınmaz",0]
[null,null,382,"13-KVK Geç. Md. 14/3 kapsamında vade sonunda doğan diğer kazanç istisnası","Dikkate Alınır",null,"Dikkate Alınmaz",0]
[null,null,383,"14-KVK Geç. Md. 14/4 kapsamında dönem sonu değerlemesinden doğan kar payı ve faiz istisnası ","Dikkate Alınır",null,"Dikkate Alınmaz",0]
[null,null,384,"15-KVK Geç. Md. 14/4 kapsamında vade sonunda oluşan kar payı ve faiz istisnası","Dikkate Alınır",null,"Dikkate Alınmaz",0]
[null,null,385,"16-KVK Geç. Md. 14/4 kapsamında vade sonunda doğan diğer kazançlardan istisnası","Dikkate Alınır",null,"Dikkate Alınmaz",0]
[null,null,null,"CARİ YILA AİT ZARAR, İSTİSNA VE İNDİRİMLER TOPLAMI ",null,{"$f":"F7+F13","v":0},null,{"$f":"H7+H13","v":0}]
[null,null,null,"ZARAR ",null,{"$f":"IF(F12-F65<0,F12-F65,0)","v":0},null,{"$f":"IF(H12-H65<0,H12-H65,0)","v":0}]
[null,null,null,"KAR",null,{"$f":"IF(F12-F65>0,F12-F65,0)","v":0},null,{"$f":"IF(H12-H65>0,H12-H65,0)","v":0}]
[null,"GEÇMİŞ YIL ZARARLARI",null,"GEÇMİŞ YIL ZARARLARI ",null,{"$f":"SUM(F69:F78)","v":0},null,{"$f":"SUM(H69:H78)","v":0}]
[null,null,2024,"İstisnadan Kaynaklanan Zararlar","Dikkate Alınır",null,"Dikkate Alınır",{"$f":"F69","v":0},"BDP DE YAPILAN GÜNCELLEMELERE İLİŞKİN DUYURU İLE GEÇMİŞ YIL ZARARLARI TUTARLARININ AKV HESABINDA DA DİKKATE ALINABİLECEĞİ BELİRTİLMEKTEDİR"]
[null,null,null,"Diğer","Dikkate Alınır",null,"Dikkate Alınır",0]
[null,null,2023,"İstisnadan Kaynaklanan Zararlar","Dikkate Alınır",null,"Dikkate Alınır",0]
[null,null,null,"Diğer","Dikkate Alınır",null,"Dikkate Alınır",0]
[null,null,2022,"İstisnadan Kaynaklanan Zararlar","Dikkate Alınır",null,"Dikkate Alınır",0]
[null,null,null,"Diğer","Dikkate Alınır",null,"Dikkate Alınır",0]
[null,null,2021,"İstisnadan Kaynaklanan Zararlar","Dikkate Alınır",null,"Dikkate Alınır",0]
[null,null,null,"Diğer","Dikkate Alınır",null,"Dikkate Alınır",0]
[null,null,2020,"İstisnadan Kaynaklanan Zararlar","Dikkate Alınır",null,"Dikkate Alınır",0]
[null,null,null,"Diğer","Dikkate Alınır",null,"Dikkate Alınır",0]
[null,null,null,"MAHSUP EDİLECEK TOPLAM GEÇMİŞ YIL ZARARLARI","Dikkate Alınır",{"$f":"F68","v":0},"Dikkate Alınır",{"$f":"H68","v":0}]
[null,null,null,"İNDİRİME ESAS TUTAR",null,{"$f":"IF(F67-F68>0,F67-F68,0)","v":0},null,{"$f":"IF(H67-H68>0,H67-H68,0)","v":0}]
[null,"KAZANCIN BULUNMASI HALİNDE İNDİRİLECEK İSTİSNA VE İNDİRİMLER","KODU","KAZANCIN BULUNMASI HALİNDE İNDİRİLECEK İSTİSNA VE İNDİRİMLER",null,{"$f":"MIN(SUM(F82:F124),F80)","v":0},null,{"$f":"MIN(SUM(H82:H124),H80)","v":0}]
[null,null,101,"Risturnlar ( K.V.K. Mad. 5/1-i )","Dikkate Alınır",null,"Dikkate Alınır",{"$f":"F82","v":0}]
[null,null,104,"Ar-Ge İndirimi ( K.V.K. Mad. 10/1-a )","Dikkate Alınır",null,"Dikkate Alınır",0]
[null,null,106,"Ar-Ge İndirimi ( 5746 Sayılı Kanun Mad. 3 )","Dikkate Alınır",null,"Dikkate Alınır",0]
[null,null,454,"Ar-Ge İndirimi ( 5746 Sayılı Kanun Mad. 3/A )","Dikkate Alınır",null,"Dikkate Alınır",0]
[null,null,455,"Tasarım İndirimi ( 5746 Sayılı Kanun Mad. 3 )","Dikkate Alınır",null,"Dikkate Alınır",0]
[null,null,105,"Sponsorluk Harcamaları ( K.V.K. Mad. 10/1-b ) (Profesyonel spor dalları)","Dikkate Alınır",null,"Dikkate Alınmaz",{"$f":"F87*0","v":0}]
[null,null,103,"Bağış ve Yardımlar ( K.V.K. Mad. 10/1-c )","Dikkate Alınır",null,"Dikkate Alınmaz",0]
[null,null,460,"Aile ve Gençlik Fonuna yapılan bağış ve yardımlar (7474 s. Kanun Mad. 6)","Dikkate Alınır",null,"Dikkate Alınmaz",0]
[null,null,461,"Afet Yeniden İmar Fonuna yapılan bağış ve yardımlar (7441 s. Kanun Mad. 7)","Dikkate Alınır",null,"Dikkate Alınmaz",0]
[null,null,462,"Uludağ Alan Başkanlığına yapılan bağış ve yardımlar ile sponsorluk harcamaları (7432 s.Kanun Mad. 8)","Dikkate Alınır",null,"Dikkate Alınmaz",0]
[null,null,463,"222 sayılı İlköğretim ve Eğitim Kanununa Göre Yapılan Bağışlar","Dikkate Alınır",null,"Dikkate Alınmaz",0]
[null,null,464,"278 sayılı Türkiye Bilimsel ve Teknolojik Araştırma Kurumu ile İlgili Bazı Düzenlemeler Hakkında Kanuna Göre Yapılan Bağışlar","Dikkate Alınır",null,"Dikkate Alınmaz",0]
[null,null,465,"2547 sayılı Yükseköğretim Kanununa Göre Yapılan Bağış ve Yardımlar","Dikkate Alınır",null,"Dikkate Alınmaz",0]
[null,null,466,"2828 sayılı Sosyal Hizmetler Kanunana Göre Yapılan Bağışlar","Dikkate Alınır",null,"Dikkate Alınmaz",0]
[null,null,467,"2876 sayılı Atatürk Kültür, Dil ve Tarih Yüksek Kurumu Kanununa Göre Yapılan Bağış ve Yardımlar","Dikkate Alınır",null,"Dikkate Alınmaz",0]
[null,null,468,"3294 sayılı Sosyal Yardımlaşma ve Dayanışmayı Teşvik Kanununa Göre Yapılan Bağış ve Yardımlar","Dikkate Alınır",null,"Dikkate Alınmaz",0]
[null,null,469,"3388 sayılı Türk Silahlı Kuvvetlerini Güçlendirme Vakfı Kanununa Göre Yapılan Bağış ve Yardımlar","Dikkate Alınır",null,"Dikkate Alınmaz",0]
[null,null,470,"3713 sayılı Terörle Mücadele Kanununa Göre Yapılan Bağışlar","Dikkate Alınır",null,"Dikkate Alınmaz",0]
[null,null,471,"4122 sayılı Milli Ağaçlandırma ve Erezyon Kontrolü Seferberlik Kanununa Göre Kurulan Ormanlarda, Ağaçlandırma, Bakım ve Koruma Masrafları","Dikkate Alınır",null,"Dikkate Alınmaz",0]
[null,null,472,"5434 sayılı Türkiye Cumhuriyeti Emekli Sandığı Kanununa Göre Yapılan Bağış ve Yardımlar","Dikkate Alınır",null,"Dikkate Alınmaz",0]
[null,null,473,"6569 sayılı Türkiye Sağlık Enstitüleri Başkanlığına İlişkin Bazı Düzenlemeler ile Bazı Kanun ve Kanun Hükmünde Kararnamelerde Değişiklik Yapılmasına Dair Kanuna Göre Yapılan Bağış ve Yardımlar.","Dikkate Alınır",null,"Dikkate Alınmaz",0]
[null,null,474,"6456 sayılı Çanakalle Savaşları Gelibolu Tarih Alanı Hakkında Bazı Düzenlemeler Yapılmasına Dair Kanuna Göre Yapılan Bağış ve Yardımlar ile Sponsorluk Harcamaları","Dikkate Alınır",null,"Dikkate Alınmaz",0]
[null,null,475,"7034 sayılı Türk-Japon Bilim ve Teknoloji Üniversitesinin Kuruluşu Hakkında Kanuna Göre Yapılan Bağış ve Yardımlar","Dikkate Alınır",null,"Dikkate Alınmaz",0]
[null,null,476,"7430 sayılı Antalya Diplomasi Forumu Vakfı Kanununa Göre Yapılan Bağış ve Yardımlar ","Dikkate Alınır",null,"Dikkate Alınmaz",0]
[null,null,477,"7439 sayılı Türk Arkeoloji ve Kültürel Miras Vakfı Kanununa Göre Yapılan Bağış ve Yardımlar","Dikkate Alınır",null,"Dikkate Alınmaz",0,null,null,"Kurumlar Vergisi beyannamesinin \"Diğer İndirimler\" veya \"Diğer indirimler ve istisnalar\" satırında gösterilmekle birlikte, mahiyet itibariyle indirim veya istisna kapsamında olmayıp, daha çok vergi matrahının doğru hesaplanması amacıyla beyannamenin bu satırına yazılan ( TMS/TFRS ve VUK Değerleme Farkları, örtülü sermaye olarak kabule edilen borçlanmalarda borç alan kurum nezdinde Türk Lirasının değer kazanması sonucu oluşan kur farkı gelirleri, kıdem tazminatı karşılığı iptali, vergi borçlarına mahsup edilen ve gelir olarak dikkate alınan 193 sayılı Kanunun mükerrer 121 maddesi kapsamındaki indirim hakkı gibi) tutarlar üzerinden  asgari kurumlar vergisi hesaplanmayacaktır.\n\nYürürlükte bulunan çifte vergilendirmeyi önleme anlaşmaları kapsamında, vergilendirme hakkının ilgili ülkede bulunması nedeniyle Türkiye’nin vergi alma hakkı olmadığı veya söz konusu kazançların Türkiye’de istisna edilmesi gerektiği durumlarda, elde edilen ve kurum kazancına dâhil edilerek beyannamenin “Diğer indirimler” ile “Diğer indirimler ve istisnalar” satırlarında matrahtan indirim konusu yapılan tutarlar asgari kurumlar vergisinin kapsamına girmeyecektir. Ayrıca, yürürlükte bulunan ikili veya çok taraflı diğer uluslararası anlaşmalar uyarınca, kurumlar vergisinden istisna edilen kazançlar da kapsamda değildir."]
[null,null,478,"7512 sayılı Dışişleri Teşkilatı Güçlendirme Vakfı Kanuna Göre Yapılan Bağış ve Yardımlar","Dikkate Alınır",null,"Dikkate Alınmaz",0]
[null,null,107,"Eğitim ve Sağlık Tesisleri, Gençlik Merkezleri, Gençlik ve İzci Kampları ile Yurt İnşaatlarına İlişkin Bağış ve Yardımlar ( K.V.K. Mad. 10/1-ç )","Dikkate Alınır",null,"Dikkate Alınmaz",0]
[null,null,116,"İbadethanelere ve Dini Tesislere Yapılan Bağış ve Yardımlar ( K.V.K. Mad. 10/1-ç )","Dikkate Alınır",null,"Dikkate Alınmaz",0]
[null,null,108,"Kültür ve Turizm Amaçlı Bağış ve Yardımlar ( K.V.K. Mad. 10/1-d )","Dikkate Alınır",null,"Dikkate Alınmaz",0]
[null,null,151,"Cumhurbaşkanınca Başlatılan Yardım Kampanyalarına Yapılan Bağış ve Yardımlar ( K.V.K. Mad. 10/1-e )","Dikkate Alınır",null,"Dikkate Alınmaz",0]
[null,null,110,"Türkiye Kızılay Derneğine ve Türkiye Yeşilay Cemiyetine Yapılan Nakdi Bağış ve Yardımlar ( K.V.K. Mad. 10/1-f )","Dikkate Alınır",null,"Dikkate Alınmaz",0]
[null,null,112,"Sağlık Hizmetlerine İlişkin İndirim ( K.V.K. Mad. 10/1-ğ )","Dikkate Alınır",null,"Dikkate Alınmaz",0]
[null,null,102,"Yatırım İndirimi İstisnası (193 sayılı Kanun mülga madde 19, geçici madde 61 ve geçici madde 69)","Dikkate Alınır",null,"Dikkate Alınmaz",0]
[null,null,453,"Nakdi Sermaye Artışından Kaynaklanan Faiz İndirimi ( K.V.K. Mad. 10/1-ı )","Dikkate Alınır",null,"Dikkate Alınmaz",0]
[null,null,459,"İstanbul Finans Merkezi Bölgesinde faaliyette bulunan kurumlar elde ettikleri kazançlardan indirim (K.V.K. Mad. 10/1-i)","Dikkate Alınır",null,"Dikkate Alınmaz",0]
[null,null,456,"Teknogirişim Sermaye Desteği İndirimi ( 5746 Sayılı Kanun Mad. 3/5 )","Dikkate Alınır",null,"Dikkate Alınmaz",0]
[null,null,457,"Teknokent Sermaye Desteği İndirimi ( 4691 Sayılı Kanun Geçici Madde 4 )","Dikkate Alınır",null,"Dikkate Alınmaz",0]
[null,null,114,"Eğitim Hizmetlerine İlişkin İndirim ( K.V.K. Mad. 10/1-ğ )","Dikkate Alınır",null,"Dikkate Alınmaz",0]
[null,null,115,"Diğer Hizmetlere İlişkin İndirim ( K.V.K. Mad. 10/1-ğ )","Dikkate Alınır",null,"Dikkate Alınmaz",{"$f":"F120*0","v":0}]
[null,null,117,"5378 Sayılı Engelliler Hakkında Kanuna Göre Kurulan Korumalı İşyeri İndirimi ( K.V.K. Mad. 10/1-h )","Dikkate Alınır",null,"Dikkate Alınır",{"$f":"F121","v":0}]
[null,null,458,"Kapadokya Alanı Başkanlığına Yapılan Bağış ve Yardımlar ile Sponsorluk Harcamaları","Dikkate Alınır",null,"Dikkate Alınmaz",{"$f":"F122*0","v":0}]
[null,null,150,"Diğer İndirimler","Dikkate Alınır",null,"Dikkate Alınır",{"$f":"F123","v":0}]
[null,null,150,"Diğer İndirimler","Dikkate Alınır",null,"Dikkate Alınmaz",0]
[null,"DÖNEM SAFİ KURUM KURUM KAZANCI / ASGARİ KURUMLAR VERGİSİ MATRAHI",null,null,null,{"$f":"IF(F80-F81>0,F80-F81,0)","v":0},null,{"$f":"IF(H80-H81>0,H80-H81,0)","v":0}]
[null,null,null,"KURUMLAR VERGİSİ ORANI",null,null,null,0.1,"32/6 İNDİRİMİNDEN YARARLANABİLECEK KURUMLAR İÇİN KV ORANI 23 OLARAK GİRİLMELİDİR.",null,"ASGARİ KV TUTARININ HESABINDA İNDİRİM KONUSU YAPILIACAĞI  KANUNİ DÜZENLEMEDE BELİRTİLMEKTEDİR.\n\n\n"]
[null,"YTB - \n\n2/8/2024 TARİHİNDEN ÖNCE ALINMIŞ OLAN YTB İLE İLGİLİ YKT LARI DÜŞÜLEBİLECEK.  \n\nBU TARİHTEN SONRA ALINAN YTB LER NEDENİYLE YARARLANILABİLİR YKT LARI AKV HESAPLAMASINDA DÜŞÜLEMEYECEKTİR.",null,"KVK'nın 32/A Mad. Kapsamında İndirimli Kurumlar Vergisine Tabi Matrah--- İMALAT FAALİYETİNDEN ELDE EDİLEN KAZANÇ İÇİN",null,null,null,{"$f":"F127","v":0},"32/A İNDİRİMİ OLMADIĞINDA 32/A VERGİ İNDİRİMİ ORANI  SIFIR OLARAK GİRİLMELİDİR."]
[null,null,null,"İMALAT FAALİYETİ KAZANCI İÇİN İNDİRİMLER ÖNCESİNDE HESAPLANAN KV TUTARI"]
[null,null,null,"32/A Vergi İndirim Oranı"]
[null,null,null,"VİO Sonrası İMALAT Kazancına Uygulanacak KV Oranı",null,{"$f":"   F126 - (0.01 +((F126-0.01)*F129))","v":-0.01}]
[null,null,null,"VİO Sonrası İMALAT Kazancı Nedeniyle Ödenmesi Gereken KV Tutarı "]
[null,null,null,"Yararlanılan İndirim Tutarı (32/A+İmalat Kazancı Nedeniyle)","Dikkate Alınır",{"$f":"F128-(F127*F130)","v":0},"Dikkate Alınır",{"$f":"F132","v":0}]
[null,null,null,"KVK'nın 32/A Mad. Kapsamında İndirimli Kurumlar Vergisine Tabi Matrah--- İHRACAT FAALİYETİNDEN ELDE EDİLEN KAZANÇ İÇİN",null,null,null,{"$f":"F133","v":0},"32/A İNDİRİMİ OLMADIĞINDA 32/A VERGİ İNDİRİMİ ORANI  SIFIR OLARAK GİRİLMELİDİR."]
[null,null,null,"İHRACAT FAALİYETİ KAZANCI İÇİN İNDİRİMLER ÖNCESİNDE HESAPLANAN KV TUTARI",null,{"$f":"F133*F126","v":0}]
[null,null,null,"32/A Vergi İndirim Oranı"]
[null,null,null,"VİO Sonrası İHRACAT Kazancına Uygulanacak KV Oranı",null,{"$f":"   F126 - (0.05 +((F126-0.05)*F135))","v":-0.05}]
[null,null,null,"VİO Sonrası İMALAT Kazancı Nedeniyle Ödenmesi Gereken KV Tutarı "]
[null,null,null,"Yararlanılan İndirim Tutarı (32/A+İmalat Kazancı Nedeniyle)","Dikkate Alınır",{"$f":"F134-(F133*F136)","v":0},"Dikkate Alınır",{"$f":"F138","v":0}]
[null,null,null,"KVK'nın 32/A Mad. Kapsamında İndirimli Kurumlar Vergisine Tabi Matrah- DİĞER FAALİYETİNDEN ELDE EDİLEN KAZANÇ İÇİN",null,null,null,{"$f":"F139","v":0},"32/A İNDİRİMİ OLMADIĞINDA 32/A VERGİ İNDİRİMİ ORANI  SIFIR OLARAK GİRİLMELİDİR."]
[null,null,null,"DİĞER FAALİYET KAZANCI İÇİN İNDİRİMLER ÖNCESİNDE HESAPLANAN KV TUTARI",null,{"$f":"F139*F126","v":0}]
[null,null,null,"32/A Vergi İndirim Oranı"]
[null,null,null,"VİO Sonrası DİĞER Kazancına Uygulanacak KV Oranı",null,{"$f":"   F126-(F126*F141)","v":0}]
[null,null,null,"VİO Sonrası İMALAT Kazancı Nedeniyle Ödenmesi Gereken KV Tutarı "]
[null,null,null,"Yararlanılan İndirim Tutarı (32/A+İmalat Kazancı Nedeniyle)","Dikkate Alınır",{"$f":"F140-(F139*F142)","v":0},"Dikkate Alınır",{"$f":"F144","v":0}]
[null,"İNDİRİMSİZ - Genel Orana Tabi Matrah",null,null,null,{"$f":"IF((F125-F127-F133-F139)<0,0,(F125-F127-F133-F139))","v":0},null,{"$f":"IF((H125-H127-H133-H139)<0,0,(H125-H127-H133-H139))","v":0}]
[null,"İNDİRİMSİZ - Genel Orana Tabi Matrah Üzerinden Hesaplanan KV Tutarı",null,null,null,{"$f":"IF(F145*F126<0,0,F145*F126)","v":0},null,{"$f":"IF(H145*H126<0,0,H145*H126)","v":0}]
[]
[null,"İşletmeden Çekilen Enflasyon Düzeltmesi Farkları ",null,null,"Dikkate Alınır",null,"Dikkate Alınır",{"$f":"F148","v":0},"BU SATIRDAKİ TUTAR HER HALÜKARDA DÖNEM KAZANCI İLE İLİŞKİLENDİRİLMEKSİZİN KV  MATRAHI OLARAK BEYAN EDİLMELİDİR. BU TUTAR ÜZERİNDEN HESAPLANAN VERGİ TUTARI DA ASGARİ KV NE DE İLAVE OLARAK ÖDENMELİDİR. "]
[]
[null,"VERGİ BİLDİRİMİ",null,"KURUMLAR VERGİSİ / ASGARİ KURUMLAR VERGİSİ MATRAHI",null,{"$f":"IF( F125>=0, F125+F148, IF(F125<0,MAX(F125,F148)))","v":0},null,{"$f":"IF( H125>=0, H125+H148, IF(H125<0,MAX(H125,H148)))","v":0},"AKV hesabında; İşletmeden çekilen enflasyon düzeltme farkı tutarı AKV matrahına ilave edilmiştir."]
[null,null,null,"HESAPLANAN KURUMLAR VERGİSİ / ASGARİ KURUMLAR VERGİSİ  -( VERGİDEN YAPILABİLECEK 32/A, 32/7, 32/8 İNDİRİMLER SONRASI)",null,{"$f":"IF(((F125+F148)*F126)-(F132+F138+F144)<0,0,((F125+F148)*F126)-(F132+F138+F144))","v":0},null,{"$f":"(H150/10)-(H132+H138+H144)","v":0}," AKV hesabında; işletmeden çekilen enflasyon düzeltme farkına ait KV, AKV  oranı dikate alınarak eklenmiştir. "]
[]
[null,"MAHSUPLAR ÖNCESİ  DİKKATE ALINMASI GEREKEN KURUM GEÇİCİ VERGİ TUTARI   (NKV İLE AKV NDEN BÜYÜK OLANI DİKKATE ALINIR)",null,null,null,null,{"$f":"MAX(F151,H151)","v":0},null,"KIYASLAMA SONRASINDA BAZ ALINACAK KV TUTARI"]
[]
[]
[null,"MAHSUPLAR",null,"MAHSUP EDİLECEK VERGİLER",null,null,null,null,"MAHSUP EDİLEBİLECEK VERGİLER ASGARİ KV TUTARINDAN DA MAHSUP EDİLEBİLİR."]
[null,null,null,"Önceki Dönemlerde Hesaplanan Geçici Vergi"]
[null,null,null,"Mahsup Edilecek Yabancı Ülkelerde Ödenen Vergi  Tutarı (K.V.K. 33. mad. göre Tevsik edilebilenler)"]
[null,null,null,"Yabancı Ülkelerde Ödenen Vergiler (Beyanname Tarihi itibariyle tevsik edilemeyenler"]
[null,null,null,"Mahsup Edilecek Tevkifat Tutarı"]
[null,null,null,"MAHSUP EDİLECEK VERGİLER TOPLAMI",null,null,{"$f":"SUM(G157:H160)-G159","v":0}]
[]
[null,"MAHSUPLAR SONRASI ÖDENMESİ GEREKEN  GEÇİCİ VERGİ",null,null,null,null,{"$f":"G153-G161","v":0}]
[null,"Yabancı Ülkelerde Ödenen Ancak Tevsik Edilmemesi Nedeni İle Tecil Edilen Geçici Kurumlar Vergisi",null,null,null,null,{"$f":"G159","v":0}]
[null,"Sonraki Döneme Devreden Hesaplanan Geçici  Vergi",null,null,null,null,{"$f":"G153","v":0}]